[Event "Live Chess"]
[Site "Chess.com"]
[Date "2024.06.01"]
[Round "-"]
[White "Ferrarifan27"]
[Black "NottheBishopSacrifice"]
[Result "0-1"]
[WhiteElo "2092"]
[BlackElo "2150"]
[TimeControl "300"]
[EndTime "9:07:19 PDT"]
[Termination "NottheBishopSacrifice won by resignation"]

1. e4 {[%clk 0:04:59]} 1... c6 {[%clk 0:04:55.3]} 2. d4 {[%clk 0:04:55.9]} 2...
d5 {[%clk 0:04:55.2]} 3. e5 {[%clk 0:04:54.7]} 3... c5 {[%clk 0:04:54.4]} 4.
dxc5 {[%clk 0:04:51.8]} 4... e6 {[%clk 0:04:53.5]} 5. a3 {[%clk 0:04:50.8]} 5...
Bxc5 {[%clk 0:04:52.5]} 6. b4 {[%clk 0:04:49.8]} 6... Be7 {[%clk 0:04:51.6]} 7.
Bb2 {[%clk 0:04:47.2]} 7... a5 {[%clk 0:04:49.3]} 8. b5 {[%clk 0:04:41.1]} 8...
Nd7 {[%clk 0:04:48]} 9. a4 {[%clk 0:04:37.5]} 9... f6 {[%clk 0:04:46.8]} 10.
exf6 {[%clk 0:04:35.8]} 10... Bxf6 {[%clk 0:04:45.8]} 11. Bxf6 {[%clk
0:04:34.9]} 11... Qxf6 {[%clk 0:04:44.8]} 12. c3 {[%clk 0:04:33.1]} 12... Ne7
{[%clk 0:04:40.2]} 13. Nf3 {[%clk 0:04:31.5]} 13... O-O {[%clk 0:04:34.8]} 14.
Bd3 {[%clk 0:04:29.6]} 14... Nc5 {[%clk 0:04:30.1]} 15. Bc2 {[%clk 0:04:26.8]}
15... e5 {[%clk 0:04:26.8]} 16. O-O {[%clk 0:04:24.6]} 16... Bf5 {[%clk
0:04:25.5]} 17. Bxf5 {[%clk 0:04:22.6]} 17... Qxf5 {[%clk 0:04:25.1]} 18. Qe2
{[%clk 0:04:15]} 18... Ng6 {[%clk 0:04:21.7]} 19. Nbd2 {[%clk 0:04:09.3]} 19...
Rae8 {[%clk 0:04:18.9]} 20. c4 {[%clk 0:04:04.8]} 20... Nf4 {[%clk 0:04:01.1]}
21. Qe3 {[%clk 0:04:03.3]} 21... d4 {[%clk 0:03:58.4]} 22. Qa3 {[%clk
0:04:00.9]} 22... b6 {[%clk 0:03:55.2]} 23. Rae1 {[%clk 0:03:41.6]} 23... Qg4
{[%clk 0:03:44.5]} 24. g3 {[%clk 0:03:37.1]} 24... Nfd3 {[%clk 0:03:38.2]} 25.
Re2 {[%clk 0:03:21.4]} 25... Rxf3 {[%clk 0:03:35.1]} 26. Nxf3 {[%clk 0:03:19.7]}
26... Qxf3 {[%clk 0:03:34.3]} 27. Qa2 {[%clk 0:03:10]} 27... e4 {[%clk
0:03:30.6]} 28. Rd1 {[%clk 0:02:45.7]} 28... Rf8 {[%clk 0:03:23.2]} 29. h4
{[%clk 0:02:30.5]} 29... h6 {[%clk 0:03:07.7]} 30. Red2 {[%clk 0:02:19.3]} 30...
e3 {[%clk 0:02:40.5]} 31. fxe3 {[%clk 0:02:16.8]} 31... Qxg3+ {[%clk 0:02:35.6]}
32. Rg2 {[%clk 0:02:15.8]} 32... Qxe3+ {[%clk 0:02:34.5]} 33. Kh1 {[%clk
0:02:14.1]} 33... Rf2 {[%clk 0:02:30.8]} 34. Rd2 {[%clk 0:02:01.2]} 34... Rf1+
{[%clk 0:02:26.3]} 35. Kh2 {[%clk 0:01:59.7]} 35... Qf4+ {[%clk 0:02:25.1]} 36.
Rg3 {[%clk 0:01:53.8]} 36... Ne4 {[%clk 0:02:16.5]} 37. Rxd3 {[%clk 0:01:52.3]}
37... Rf2+ {[%clk 0:02:15.1]} 38. Qxf2 {[%clk 0:01:49.6]} 38... Qxf2+ {[%clk
0:02:12.8]} 39. Rg2 {[%clk 0:01:47.2]} 39... Qf4+ {[%clk 0:02:12.4]} 40. Kg1
{[%clk 0:01:45.3]} 40... Nc5 {[%clk 0:02:08.3]} 41. Rdd2 {[%clk 0:01:41.1]}
41... d3 {[%clk 0:02:06.6]} 42. Rdf2 {[%clk 0:01:36.2]} 42... Qe3 {[%clk
0:02:05.5]} 43. Kh2 {[%clk 0:01:34.3]} 43... Ne4 {[%clk 0:02:03.3]} 44. Rf1
{[%clk 0:01:28.8]} 44... d2 {[%clk 0:02:00.7]} 45. Rfg1 {[%clk 0:01:28.1]} 45...
Qd4 {[%clk 0:01:53.7]} 46. Rd1 {[%clk 0:01:21.5]} 46... Nf2 {[%clk 0:01:49.7]}
47. Rf1 {[%clk 0:01:14.5]} 47... Ng4+ {[%clk 0:01:42.9]} 48. Kg3 {[%clk
0:01:08.1]} 48... Ne3 {[%clk 0:01:39.6]} 0-1

[Event "Live Chess"]
[Site "Chess.com"]
[Date "2024.06.01"]
[Round "-"]
[White "Harry_Li"]
[Black "vincents82"]
[Result "0-1"]
[WhiteElo "2082"]
[BlackElo "2150"]
[TimeControl "300"]
[EndTime "9:07:28 PDT"]
[Termination "vincents82 won by resignation"]

1. e4 {[%clk 0:04:56.3]} 1... d5 {[%clk 0:04:57.8]} 2. exd5 {[%clk 0:04:56.2]}
2... Qxd5 {[%clk 0:04:56.4]} 3. Nc3 {[%clk 0:04:55.5]} 3... Qd8 {[%clk 0:04:55]}
4. d4 {[%clk 0:04:54.5]} 4... Nf6 {[%clk 0:04:53.7]} 5. Nf3 {[%clk 0:04:53.1]}
5... Bg4 {[%clk 0:04:52.1]} 6. h3 {[%clk 0:04:50.9]} 6... Bxf3 {[%clk
0:04:48.1]} 7. Qxf3 {[%clk 0:04:50.8]} 7... c6 {[%clk 0:04:47.7]} 8. g4 {[%clk
0:04:41.6]} 8... e6 {[%clk 0:04:45.6]} 9. g5 {[%clk 0:04:38.2]} 9... Nd5 {[%clk
0:04:44.3]} 10. Ne4 {[%clk 0:04:30.7]} 10... Nd7 {[%clk 0:04:38.4]} 11. Bd2
{[%clk 0:04:27]} 11... Be7 {[%clk 0:04:36.6]} 12. O-O-O {[%clk 0:04:24.1]} 12...
a5 {[%clk 0:04:15.7]} 13. Kb1 {[%clk 0:04:19.5]} 13... a4 {[%clk 0:04:14.3]} 14.
a3 {[%clk 0:04:16.9]} 14... b5 {[%clk 0:04:12.4]} 15. h4 {[%clk 0:04:06.6]}
15... b4 {[%clk 0:04:11]} 16. axb4 {[%clk 0:04:01.2]} 16... Nxb4 {[%clk
0:04:05.1]} 17. h5 {[%clk 0:03:10.6]} 17... a3 {[%clk 0:04:00.8]} 18. bxa3
{[%clk 0:03:08.9]} 18... Nd5 {[%clk 0:03:54.7]} 19. Bc4 {[%clk 0:02:49.2]} 19...
Rxa3 {[%clk 0:03:43.6]} 20. Bb3 {[%clk 0:02:46.6]} 20... Qa8 {[%clk 0:03:28.3]}
21. Kb2 {[%clk 0:02:25.3]} 21... N7b6 {[%clk 0:03:18.5]} 22. Ra1 {[%clk
0:02:19.6]} 22... Na4+ {[%clk 0:03:09.9]} 23. Bxa4 {[%clk 0:02:10.6]} 23... Rxa4
{[%clk 0:03:04.4]} 24. Rxa4 {[%clk 0:01:55.5]} 24... Qxa4 {[%clk 0:03:02.5]} 25.
g6 {[%clk 0:00:34.2]} 25... f5 {[%clk 0:02:45.1]} 26. Nc3 {[%clk 0:00:17.7]}
26... Ba3+ {[%clk 0:02:30.9]} 27. Ka2 {[%clk 0:00:13.8]} 27... Nb4+ {[%clk
0:02:18.9]} 0-1

[Event "Live Chess"]
[Site "Chess.com"]
[Date "2024.06.01"]
[Round "-"]
[White "FlyingChessKestrel13"]
[Black "CarmelJane"]
[Result "1-0"]
[WhiteElo "2119"]
[BlackElo "2114"]
[TimeControl "300"]
[EndTime "9:07:32 PDT"]
[Termination "FlyingChessKestrel13 won by resignation"]

1. e4 {[%clk 0:04:53.9]} 1... c5 {[%clk 0:04:58.4]} 2. Nc3 {[%clk 0:04:50.8]}
2... e6 {[%clk 0:04:52.2]} 3. Nf3 {[%clk 0:04:48.1]} 3... a6 {[%clk 0:04:51.1]}
4. d4 {[%clk 0:04:46.7]} 4... cxd4 {[%clk 0:04:51]} 5. Nxd4 {[%clk 0:04:44.2]}
5... Qc7 {[%clk 0:04:50.1]} 6. Bd2 {[%clk 0:04:41.8]} 6... Bc5 {[%clk
0:04:43.4]} 7. Nb3 {[%clk 0:04:39.5]} 7... Ba7 {[%clk 0:04:40.5]} 8. Bd3 {[%clk
0:04:37.7]} 8... Nf6 {[%clk 0:04:33.1]} 9. O-O {[%clk 0:04:36.8]} 9... d6 {[%clk
0:04:31.5]} 10. Bf4 {[%clk 0:04:30.9]} 10... O-O {[%clk 0:04:22.2]} 11. Kh1
{[%clk 0:04:26.9]} 11... e5 {[%clk 0:04:17.4]} 12. Bg3 {[%clk 0:04:25.4]} 12...
b5 {[%clk 0:04:13]} 13. Bh4 {[%clk 0:04:21.8]} 13... Nbd7 {[%clk 0:04:02.7]} 14.
a3 {[%clk 0:04:13.2]} 14... Bb7 {[%clk 0:03:59.7]} 15. f3 {[%clk 0:04:09]} 15...
h6 {[%clk 0:03:48.3]} 16. a4 {[%clk 0:03:46]} 16... b4 {[%clk 0:03:45.5]} 17.
Ne2 {[%clk 0:03:42.7]} 17... a5 {[%clk 0:03:44.4]} 18. Bb5 {[%clk 0:03:28.4]}
18... Rac8 {[%clk 0:03:15.8]} 19. Rc1 {[%clk 0:03:25.1]} 19... Be3 {[%clk
0:03:07.7]} 20. Rb1 {[%clk 0:03:17.4]} 20... Qxc2 {[%clk 0:03:03.2]} 21. Qxc2
{[%clk 0:03:16.1]} 21... Rxc2 {[%clk 0:03:03.1]} 22. Rfd1 {[%clk 0:03:11.3]}
22... Rxe2 {[%clk 0:03:00]} 23. Bxe2 {[%clk 0:03:09.4]} 23... Nh5 {[%clk
0:02:50.7]} 24. Rxd6 {[%clk 0:03:04.8]} 24... Ndf6 {[%clk 0:02:41.1]} 25. g3
{[%clk 0:02:53.7]} 25... g5 {[%clk 0:02:38.8]} 26. Bxg5 {[%clk 0:02:52.2]} 26...
Bxg5 {[%clk 0:02:24.5]} 27. Nxa5 {[%clk 0:02:48.9]} 27... Ba8 {[%clk 0:02:15]}
28. Nc6 {[%clk 0:02:44.1]} 28... Ne8 {[%clk 0:02:00]} 29. Rbd1 {[%clk
0:02:31.7]} 29... Nxd6 {[%clk 0:01:59.1]} 30. Rxd6 {[%clk 0:02:30.5]} 30... Rc8
{[%clk 0:01:58.4]} 31. Bb5 {[%clk 0:02:28]} 31... Ng7 {[%clk 0:01:48.3]} 32. h4
{[%clk 0:02:25.3]} 32... Be3 {[%clk 0:01:43.1]} 33. Ne7+ {[%clk 0:02:23.6]}
33... Kh7 {[%clk 0:01:41.3]} 34. Nxc8 {[%clk 0:02:22.1]} 34... Ne6 {[%clk
0:01:34.6]} 35. Rd7 {[%clk 0:02:18.8]} 35... Kg6 {[%clk 0:01:32.7]} 36. Ne7+
{[%clk 0:02:11.3]} 36... Kf6 {[%clk 0:01:27.5]} 37. Nd5+ {[%clk 0:02:09.6]}
37... Bxd5 {[%clk 0:01:23.6]} 38. Rxd5 {[%clk 0:02:06.7]} 38... Nd4 {[%clk
0:01:23.3]} 39. Kg2 {[%clk 0:02:02.9]} 39... Bc1 {[%clk 0:01:21.1]} 40. a5
{[%clk 0:01:59.7]} 40... Bxb2 {[%clk 0:01:15.6]} 41. a6 {[%clk 0:01:58.6]} 41...
Ne6 {[%clk 0:01:10]} 42. a7 {[%clk 0:01:54.8]} 42... Nc7 {[%clk 0:01:08.6]} 43.
Rc5 {[%clk 0:01:51.2]} 43... Na8 {[%clk 0:01:06.3]} 44. Bc6 {[%clk 0:01:48.8]}
44... Bd4 {[%clk 0:01:03.6]} 45. Rb5 {[%clk 0:01:46]} 45... Nc7 {[%clk
0:01:01.7]} 46. a8=Q {[%clk 0:01:43.3]} 46... Nxa8 {[%clk 0:01:00.4]} 47. Bxa8
{[%clk 0:01:42.9]} 1-0

[Event "Live Chess"]
[Site "Chess.com"]
[Date "2024.06.01"]
[Round "-"]
[White "nigelst"]
[Black "NeilDruggan73"]
[Result "1-0"]
[WhiteElo "1768"]
[BlackElo "1737"]
[TimeControl "300"]
[EndTime "9:07:34 PDT"]
[Termination "nigelst won by checkmate"]

1. e4 {[%clk 0:04:56.9]} 1... d6 {[%clk 0:04:56.7]} 2. d4 {[%clk 0:04:54.9]}
2... Nf6 {[%clk 0:04:54.8]} 3. Nc3 {[%clk 0:04:54.3]} 3... g6 {[%clk 0:04:54]}
4. f4 {[%clk 0:04:52.7]} 4... Bg7 {[%clk 0:04:52.6]} 5. e5 {[%clk 0:04:52.1]}
5... Nfd7 {[%clk 0:04:47.5]} 6. Nf3 {[%clk 0:04:42.6]} 6... O-O {[%clk
0:04:40.1]} 7. Ng5 {[%clk 0:04:24.3]} 7... h6 {[%clk 0:04:29.4]} 8. Nxf7 {[%clk
0:03:56.8]} 8... Kxf7 {[%clk 0:04:03.8]} 9. e6+ {[%clk 0:03:42.4]} 9... Kxe6
{[%clk 0:03:15.1]} 10. Bc4+ {[%clk 0:03:29]} 10... Kf6 {[%clk 0:02:53.2]} 11.
Ne4+ {[%clk 0:02:16.7]} 11... Kf5 {[%clk 0:02:38.1]} 12. g4+ {[%clk 0:01:50.1]}
12... Kxe4 {[%clk 0:02:21.3]} 13. Qe2+ {[%clk 0:01:42.2]} 13... Kxd4 {[%clk
0:02:17.9]} 14. Be3+ {[%clk 0:01:21.1]} 14... Ke4 {[%clk 0:02:12.3]} 15. Qd3+
{[%clk 0:01:12.4]} 15... Kf3 {[%clk 0:02:07.8]} 16. O-O+ {[%clk 0:01:10.3]}
16... Kxg4 {[%clk 0:01:59.5]} 17. Be6+ {[%clk 0:01:06.5]} 17... Kh5 {[%clk
0:01:50.6]} 18. Qe2+ {[%clk 0:01:00.4]} 18... Kh4 {[%clk 0:01:26.4]} 19. Bf2#
{[%clk 0:00:55.8]} 1-0

[Event "Live Chess"]
[Site "Chess.com"]
[Date "2024.06.01"]
[Round "-"]
[White "Waterphall"]
[Black "elephantgerrald"]
[Result "1-0"]
[WhiteElo "743"]
[BlackElo "702"]
[TimeControl "300"]
[EndTime "9:07:44 PDT"]
[Termination "Waterphall won by checkmate"]

1. c4 {[%clk 0:04:58.1]} 1... e5 {[%clk 0:04:56.8]} 2. Nc3 {[%clk 0:04:56]} 2...
Nf6 {[%clk 0:04:55.1]} 3. g3 {[%clk 0:04:53.3]} 3... Nc6 {[%clk 0:04:53.9]} 4.
Bg2 {[%clk 0:04:51.5]} 4... Bb4 {[%clk 0:04:52.8]} 5. e3 {[%clk 0:04:45.6]} 5...
Bxc3 {[%clk 0:04:51.7]} 6. dxc3 {[%clk 0:04:43.4]} 6... O-O {[%clk 0:04:50.5]}
7. Ne2 {[%clk 0:04:39.3]} 7... d6 {[%clk 0:04:46.2]} 8. O-O {[%clk 0:04:36.8]}
8... Bg4 {[%clk 0:04:43.5]} 9. b3 {[%clk 0:04:23.1]} 9... Qd7 {[%clk 0:04:38.2]}
10. Qc2 {[%clk 0:04:17.3]} 10... Rfe8 {[%clk 0:04:16.7]} 11. Kh1 {[%clk
0:03:49]} 11... e4 {[%clk 0:04:13.2]} 12. Ng1 {[%clk 0:03:35.5]} 12... Bh3
{[%clk 0:04:04.9]} 13. Nxh3 {[%clk 0:03:29]} 13... Ng4 {[%clk 0:04:00.8]} 14. b4
{[%clk 0:03:09]} 14... b6 {[%clk 0:03:52.3]} 15. b5 {[%clk 0:03:02.7]} 15...
Nce5 {[%clk 0:03:46.4]} 16. Bxe4 {[%clk 0:02:48.6]} 16... g6 {[%clk 0:03:39.6]}
17. Bxa8 {[%clk 0:02:46]} 17... Rxa8 {[%clk 0:03:36.6]} 18. Qe4 {[%clk
0:02:22.2]} 18... h5 {[%clk 0:03:26.4]} 19. Qxa8+ {[%clk 0:02:17.9]} 19... Kh7
{[%clk 0:03:22.9]} 20. Qxa7 {[%clk 0:02:12.2]} 20... Nxe3 {[%clk 0:03:15.5]} 21.
Bxe3 {[%clk 0:02:08.8]} 21... Qxh3 {[%clk 0:03:13.4]} 22. Qxc7 {[%clk
0:01:57.7]} 22... Nf3 {[%clk 0:03:09.5]} 23. Qxf7+ {[%clk 0:01:51.3]} 23... Kh8
{[%clk 0:03:06.1]} 24. Qxf3 {[%clk 0:01:49.8]} 24... Qd7 {[%clk 0:03:00.5]} 25.
Bd4+ {[%clk 0:01:47.6]} 25... Kh7 {[%clk 0:02:56]} 26. Rae1 {[%clk 0:01:45.4]}
26... Kg8 {[%clk 0:02:46.3]} 27. Re4 {[%clk 0:01:42.9]} 27... Qb7 {[%clk
0:02:26.5]} 28. Rf4 {[%clk 0:01:40.3]} 28... Qxf3+ {[%clk 0:02:23.9]} 29. Rxf3
{[%clk 0:01:39.3]} 29... Kh7 {[%clk 0:02:22.3]} 30. Re1 {[%clk 0:01:38.2]} 30...
Kh6 {[%clk 0:02:17.6]} 31. Re6 {[%clk 0:01:36.8]} 31... Kg5 {[%clk 0:02:15.7]}
32. Rxd6 {[%clk 0:01:31]} 32... Kg4 {[%clk 0:02:13.6]} 33. Rff6 {[%clk 0:01:30]}
33... Kg5 {[%clk 0:02:12.3]} 34. Rxb6 {[%clk 0:01:28.1]} 34... Kg4 {[%clk
0:02:10]} 35. Rxg6+ {[%clk 0:01:27.2]} 35... Kf5 {[%clk 0:02:08.4]} 36. Rbf6+
{[%clk 0:01:24.7]} 36... Ke4 {[%clk 0:02:06.7]} 37. Rf4+ {[%clk 0:01:18.8]}
37... Kd3 {[%clk 0:02:05.1]} 38. g4 {[%clk 0:01:12.1]} 38... hxg4 {[%clk
0:02:03]} 39. Rgxg4 {[%clk 0:01:11.2]} 39... Ke2 {[%clk 0:01:59.1]} 40. Rg2
{[%clk 0:01:06.7]} 40... Kd3 {[%clk 0:01:57]} 41. Rf3+ {[%clk 0:01:03.2]} 41...
Kxc4 {[%clk 0:01:54.2]} 42. b6 {[%clk 0:00:59.1]} 42... Kb5 {[%clk 0:01:39.7]}
43. b7 {[%clk 0:00:57.9]} 43... Ka4 {[%clk 0:01:39.2]} 44. b8=Q {[%clk
0:00:54.2]} 44... Ka3 {[%clk 0:01:38.5]} 45. Rf6 {[%clk 0:00:47.4]} 45... Kxa2
{[%clk 0:01:34]} 46. Ra6# {[%clk 0:00:46.5]} 1-0

[Event "Live Chess"]
[Site "Chess.com"]
[Date "2024.06.01"]
[Round "-"]
[White "peteopeteo"]
[Black "DoctorMantisTobogganMD"]
[Result "0-1"]
[WhiteElo "1609"]
[BlackElo "2204"]
[TimeControl "300"]
[EndTime "9:07:51 PDT"]
[Termination "DoctorMantisTobogganMD won by resignation"]

1. e4 {[%clk 0:04:57.1]} 1... c6 {[%clk 0:04:58.6]} 2. Nc3 {[%clk 0:04:56.2]}
2... g6 {[%clk 0:04:56.4]} 3. Nf3 {[%clk 0:04:56.1]} 3... Bg7 {[%clk 0:04:55.8]}
4. Bc4 {[%clk 0:04:54.3]} 4... e6 {[%clk 0:04:54.6]} 5. d3 {[%clk 0:04:52.4]}
5... d5 {[%clk 0:04:54.1]} 6. exd5 {[%clk 0:04:51.3]} 6... exd5 {[%clk
0:04:53.4]} 7. Bb3 {[%clk 0:04:48.8]} 7... Nf6 {[%clk 0:04:52.7]} 8. Ne2 {[%clk
0:04:44.2]} 8... O-O {[%clk 0:04:51.5]} 9. Ng3 {[%clk 0:04:43.4]} 9... Bg4
{[%clk 0:04:48.3]} 10. O-O {[%clk 0:04:41.6]} 10... Nbd7 {[%clk 0:04:46.4]} 11.
Re1 {[%clk 0:04:40.2]} 11... Re8 {[%clk 0:04:44.5]} 12. Rxe8+ {[%clk 0:04:38]}
12... Qxe8 {[%clk 0:04:43.6]} 13. c3 {[%clk 0:04:25.1]} 13... Bxf3 {[%clk
0:04:41.4]} 14. Qxf3 {[%clk 0:04:19]} 14... Qe1+ {[%clk 0:04:40]} 15. Nf1 {[%clk
0:04:17.3]} 15... Re8 {[%clk 0:04:39.3]} 16. Qd1 {[%clk 0:04:02]} 16... Nc5
{[%clk 0:04:27.8]} 17. d4 {[%clk 0:03:46.7]} 17... Nxb3 {[%clk 0:04:22.1]} 18.
axb3 {[%clk 0:03:46.6]} 18... a6 {[%clk 0:04:20.3]} 19. Qxe1 {[%clk 0:03:34.7]}
19... Rxe1 {[%clk 0:04:20.2]} 20. h3 {[%clk 0:03:28.8]} 20... Ne4 {[%clk
0:04:11.1]} 21. Be3 {[%clk 0:03:04.5]} 21... Rxa1 {[%clk 0:04:09.1]} 22. g3
{[%clk 0:03:02.4]} 22... Rb1 {[%clk 0:04:03.3]} 23. Kg2 {[%clk 0:03:01]} 23...
Rxb2 {[%clk 0:04:02.4]} 24. Bf4 {[%clk 0:02:57.4]} 24... Rxb3 {[%clk 0:04:00.9]}
25. Ne3 {[%clk 0:02:56.8]} 25... Nxc3 {[%clk 0:03:59.2]} 0-1

[Event "Live Chess"]
[Site "Chess.com"]
[Date "2024.06.01"]
[Round "-"]
[White "Trecregin"]
[Black "Colm_Buckley"]
[Result "0-1"]
[WhiteElo "1759"]
[BlackElo "1817"]
[TimeControl "300"]
[EndTime "9:07:53 PDT"]
[Termination "Colm_Buckley won by resignation"]

1. e4 {[%clk 0:04:56.7]} 1... e6 {[%clk 0:04:59.1]} 2. d4 {[%clk 0:04:55.7]}
2... d5 {[%clk 0:04:58.5]} 3. Nc3 {[%clk 0:04:54.8]} 3... Nf6 {[%clk 0:04:56.7]}
4. e5 {[%clk 0:04:53.9]} 4... Nfd7 {[%clk 0:04:55.6]} 5. f4 {[%clk 0:04:53.4]}
5... c5 {[%clk 0:04:54.4]} 6. Nf3 {[%clk 0:04:52.7]} 6... Nc6 {[%clk 0:04:53.2]}
7. Be3 {[%clk 0:04:51.5]} 7... a6 {[%clk 0:04:49]} 8. Qd2 {[%clk 0:04:49.8]}
8... b5 {[%clk 0:04:43.3]} 9. Be2 {[%clk 0:04:46.7]} 9... Qb6 {[%clk 0:04:35.1]}
10. O-O {[%clk 0:04:39.2]} 10... cxd4 {[%clk 0:04:26.8]} 11. Nxd4 {[%clk
0:04:37]} 11... Bc5 {[%clk 0:04:17.9]} 12. Rad1 {[%clk 0:04:30.9]} 12... Bb7
{[%clk 0:04:04.7]} 13. Kh1 {[%clk 0:04:27.2]} 13... O-O {[%clk 0:03:57.6]} 14.
Bg1 {[%clk 0:04:24.5]} 14... Nxd4 {[%clk 0:03:54.7]} 15. Bxd4 {[%clk 0:04:22.6]}
15... Bxd4 {[%clk 0:03:52]} 16. Qxd4 {[%clk 0:04:20.9]} 16... Rfc8 {[%clk
0:03:45.1]} 17. Qd2 {[%clk 0:03:55.7]} 17... Nc5 {[%clk 0:03:24]} 18. Bd3 {[%clk
0:03:49.5]} 18... Nxd3 {[%clk 0:03:22.1]} 19. Qxd3 {[%clk 0:03:48.6]} 19... b4
{[%clk 0:03:07.1]} 20. Ne2 {[%clk 0:03:46.3]} 20... Qc5 {[%clk 0:03:00.6]} 21.
Nd4 {[%clk 0:03:43.4]} 21... a5 {[%clk 0:02:54.7]} 22. Rd2 {[%clk 0:03:32.8]}
22... Ba6 {[%clk 0:02:50.6]} 23. Qf3 {[%clk 0:03:09]} 23... Bxf1 {[%clk
0:02:48.9]} 24. Qxf1 {[%clk 0:03:08.3]} 24... Qe7 {[%clk 0:02:45.4]} 25. g3
{[%clk 0:03:04.3]} 25... Rc4 {[%clk 0:02:39.1]} 26. Qf2 {[%clk 0:03:00.4]} 26...
Rac8 {[%clk 0:02:36.3]} 27. Qe3 {[%clk 0:02:47.1]} 27... g6 {[%clk 0:02:33.5]}
28. Qd3 {[%clk 0:02:24.3]} 28... R8c5 {[%clk 0:02:24.9]} 29. Nb3 {[%clk
0:02:10.3]} 29... Rb5 {[%clk 0:02:11.4]} 30. Nd4 {[%clk 0:02:08.2]} 30... Rb6
{[%clk 0:02:05.5]} 31. Kg2 {[%clk 0:01:57]} 31... Qc7 {[%clk 0:02:03.2]} 32. h4
{[%clk 0:01:51.9]} 32... a4 {[%clk 0:01:56.2]} 33. Kh3 {[%clk 0:01:48.4]} 33...
Qc5 {[%clk 0:01:44.9]} 34. h5 {[%clk 0:01:40.1]} 34... Rb7 {[%clk 0:01:34.7]}
35. hxg6 {[%clk 0:01:36.8]} 35... hxg6 {[%clk 0:01:27.7]} 36. Kg4 {[%clk
0:01:36]} 36... Kf8 {[%clk 0:01:21.1]} 37. Kf3 {[%clk 0:01:34.9]} 37... Ke7
{[%clk 0:01:17]} 38. Kg4 {[%clk 0:01:33.6]} 38... Qc8 {[%clk 0:01:12.8]} 39. Qe3
{[%clk 0:01:29]} 39... Qh8 {[%clk 0:01:08.8]} 40. Kf3 {[%clk 0:01:27.9]} 40...
Qh5+ {[%clk 0:01:06.7]} 41. Kg2 {[%clk 0:01:26]} 41... Rbc7 {[%clk 0:01:03.3]}
42. Rd1 {[%clk 0:01:15.5]} 42... Qxd1 {[%clk 0:01:00.5]} 0-1

[Event "Live Chess"]
[Site "Chess.com"]
[Date "2024.06.01"]
[Round "-"]
[White "WildMantra69"]
[Black "EdenHazard8"]
[Result "0-1"]
[WhiteElo "2013"]
[BlackElo "2197"]
[TimeControl "300"]
[EndTime "9:07:54 PDT"]
[Termination "EdenHazard8 won by resignation"]

1. d4 {[%clk 0:04:59]} 1... Nf6 {[%clk 0:04:57.7]} 2. c4 {[%clk 0:04:58.2]} 2...
e6 {[%clk 0:04:56.7]} 3. Nc3 {[%clk 0:04:57.5]} 3... c5 {[%clk 0:04:55]} 4. e3
{[%clk 0:04:56.2]} 4... cxd4 {[%clk 0:04:53.4]} 5. exd4 {[%clk 0:04:55.5]} 5...
d5 {[%clk 0:04:52.6]} 6. cxd5 {[%clk 0:04:54.6]} 6... exd5 {[%clk 0:04:51.5]} 7.
Nf3 {[%clk 0:04:54]} 7... Nc6 {[%clk 0:04:50.4]} 8. Bg5 {[%clk 0:04:53]} 8...
Be7 {[%clk 0:04:49.1]} 9. Bb5 {[%clk 0:04:52]} 9... O-O {[%clk 0:04:47.7]} 10.
O-O {[%clk 0:04:51.5]} 10... h6 {[%clk 0:04:46.2]} 11. Bf4 {[%clk 0:04:49.9]}
11... Be6 {[%clk 0:04:43.5]} 12. Re1 {[%clk 0:04:47.9]} 12... Qb6 {[%clk
0:04:41.4]} 13. Bxc6 {[%clk 0:04:46.8]} 13... bxc6 {[%clk 0:04:40.2]} 14. Qd2
{[%clk 0:04:46.2]} 14... Bb4 {[%clk 0:04:38.2]} 15. Ne5 {[%clk 0:04:44.4]} 15...
Ne4 {[%clk 0:04:36.5]} 16. Qc1 {[%clk 0:04:37.7]} 16... Qxd4 {[%clk 0:04:34]}
17. Nxe4 {[%clk 0:04:32.3]} 17... Bxe1 {[%clk 0:04:30.1]} 18. Qxe1 {[%clk
0:04:11.3]} 18... Qxe4 {[%clk 0:04:28.4]} 19. Qc1 {[%clk 0:04:07.8]} 19... c5
{[%clk 0:04:23.2]} 20. Bg3 {[%clk 0:04:05.1]} 20... c4 {[%clk 0:04:21.2]} 21. f3
{[%clk 0:04:02.8]} 21... Qd4+ {[%clk 0:04:17.4]} 22. Kh1 {[%clk 0:04:02.3]}
22... Rac8 {[%clk 0:04:10.2]} 23. Qe1 {[%clk 0:03:50]} 23... Qxb2 {[%clk
0:04:07.2]} 24. Ng4 {[%clk 0:03:43.1]} 24... Bxg4 {[%clk 0:04:04.2]} 25. fxg4
{[%clk 0:03:43]} 25... Rfe8 {[%clk 0:03:59.1]} 26. Qf1 {[%clk 0:03:42.4]} 26...
c3 {[%clk 0:03:56.6]} 27. Rb1 {[%clk 0:03:40.7]} 27... Qxa2 {[%clk 0:03:49.4]}
28. Rb7 {[%clk 0:03:37]} 28... d4 {[%clk 0:03:48.2]} 29. h4 {[%clk 0:03:34.1]}
29... c2 {[%clk 0:03:45.5]} 30. Kh2 {[%clk 0:03:33.6]} 30... c1=Q {[%clk
0:03:44.2]} 31. Qf5 {[%clk 0:03:31.8]} 31... Qe6 {[%clk 0:03:39]} 32. Qf3 {[%clk
0:03:28.2]} 32... Qcc6 {[%clk 0:03:34.5]} 0-1